[Event "*** Titled Tuesday 3|2 Blitz"]
[Site "Chess.com"]
[Date "2016.08.02"]
[Round "8"]
[White "Krutoy123"]
[Black "Aragon"]
[Result "1-0"]
[WhiteElo "2377"]
[BlackElo "2080"]
[TimeControl "180+2"]
[EndTime "12:45:27 PDT"]
[Termination "Krutoy123 won by resignation"]

1. e4 {[%clk 0:03:01.9]} 1... c5 {[%clk 0:02:59.9]} 2. Nf3 {[%clk 0:03:02.9]}
2... a6 {[%clk 0:03:00.3]} 3. b3 {[%clk 0:03:03.6]} 3... b6 {[%clk 0:02:58.9]}
4. Bb2 {[%clk 0:03:04.8]} 4... Bb7 {[%clk 0:02:59.8]} 5. Qe2 {[%clk 0:03:06.3]}
5... e6 {[%clk 0:03:00.5]} 6. Nc3 {[%clk 0:03:07.5]} 6... d6 {[%clk 0:03:01.7]}
7. d4 {[%clk 0:03:08]} 7... cxd4 {[%clk 0:02:59]} 8. Nxd4 {[%clk 0:03:09.9]}
8... Nd7 {[%clk 0:02:59.6]} 9. O-O-O {[%clk 0:03:11]} 9... Ngf6 {[%clk
0:03:00.8]} 10. f4 {[%clk 0:03:12]} 10... Qc7 {[%clk 0:03:00.6]} 11. g4 {[%clk
0:03:11.3]} 11... h6 {[%clk 0:02:59.9]} 12. Bg2 {[%clk 0:03:09.9]} 12... Be7
{[%clk 0:02:57.4]} 13. e5 {[%clk 0:03:11.2]} 13... dxe5 {[%clk 0:02:45.7]} 14.
fxe5 {[%clk 0:03:10.4]} 14... Nd5 {[%clk 0:02:02.6]} 15. Nxd5 {[%clk 0:03:11.1]}
15... Bxd5 {[%clk 0:01:58.3]} 16. Bxd5 {[%clk 0:03:11.4]} 16... exd5 {[%clk
0:01:59.3]} 17. e6 {[%clk 0:03:13.3]} 17... Ne5 {[%clk 0:01:44]} 18. Nf5 {[%clk
0:03:14.1]} 18... Bf6 {[%clk 0:01:25.3]} 19. Rxd5 {[%clk 0:03:14.9]} 19... fxe6
{[%clk 0:01:23.4]} 20. Rxe5 {[%clk 0:03:15.4]} 20... Bxe5 {[%clk 0:01:16.1]} 21.
Bxe5 {[%clk 0:03:17.3]} 21... Qb7 {[%clk 0:01:10.9]} 22. Nxg7+ {[%clk 0:03:18]}
22... Kf7 {[%clk 0:01:10.5]} 23. Rf1+ {[%clk 0:03:18.2]} 23... Kg8 {[%clk
0:01:11.7]} 24. Nh5 {[%clk 0:03:19.5]} 24... Rc8 {[%clk 0:00:46.3]} 25. Bxh8
{[%clk 0:03:20.1]} 25... Kxh8 {[%clk 0:00:46.9]} 26. Qd2 {[%clk 0:03:20.1]}
26... Kh7 {[%clk 0:00:34.7]} 27. Rf6 {[%clk 0:03:17.8]} 27... e5 {[%clk
0:00:31.2]} 28. Qxh6+ {[%clk 0:03:18]} 28... Kg8 {[%clk 0:00:32.2]} 29. Rg6+
{[%clk 0:03:19.4]} 29... Kf7 {[%clk 0:00:33]} 30. Rg7+ {[%clk 0:03:20.7]} 1-0

[Event "*** Titled Tuesday 3|2 Blitz"]
[Site "Chess.com"]
[Date "2016.08.02"]
[Round "8"]
[White "fastestmindalive"]
[Black "LaStreetCmaMaison"]
[Result "0-1"]
[WhiteElo "2427"]
[BlackElo "2527"]
[TimeControl "180+2"]
[EndTime "12:45:50 PDT"]
[Termination "LaStreetCmaMaison won by resignation"]

1. e4 {[%clk 0:03:01.9]} 1... c5 {[%clk 0:02:57.9]} 2. Nc3 {[%clk 0:03:01.5]}
2... a6 {[%clk 0:02:57.9]} 3. f4 {[%clk 0:03:02.4]} 3... b5 {[%clk 0:02:57.7]}
4. Nf3 {[%clk 0:03:04.3]} 4... Bb7 {[%clk 0:02:57.4]} 5. d3 {[%clk 0:03:03.4]}
5... e6 {[%clk 0:02:56.8]} 6. g3 {[%clk 0:03:04.4]} 6... d5 {[%clk 0:02:56.5]}
7. Bg2 {[%clk 0:03:03.3]} 7... b4 {[%clk 0:02:53.1]} 8. Ne2 {[%clk 0:03:04.4]}
8... dxe4 {[%clk 0:02:53.5]} 9. Nd2 {[%clk 0:03:05.4]} 9... f5 {[%clk
0:02:50.8]} 10. dxe4 {[%clk 0:02:52.9]} 10... Nf6 {[%clk 0:02:51.6]} 11. O-O
{[%clk 0:02:53.2]} 11... fxe4 {[%clk 0:02:50.8]} 12. Nc4 {[%clk 0:02:52.9]}
12... Nbd7 {[%clk 0:02:50]} 13. h3 {[%clk 0:02:52.6]} 13... Be7 {[%clk
0:02:50.6]} 14. Be3 {[%clk 0:02:53.4]} 14... O-O {[%clk 0:02:50.1]} 15. g4
{[%clk 0:02:54.2]} 15... Nd5 {[%clk 0:02:39.6]} 16. Ng3 {[%clk 0:02:50.6]} 16...
N7b6 {[%clk 0:02:31.6]} 17. Nxb6 {[%clk 0:02:37.4]} 17... Nxe3 {[%clk
0:02:28.5]} 18. Qxd8 {[%clk 0:01:24.7]} 18... Raxd8 {[%clk 0:02:30.4]} 19. Bxe4
{[%clk 0:01:17.8]} 19... Bxe4 {[%clk 0:02:29.8]} 20. Nxe4 {[%clk 0:01:18.5]}
20... Nxf1 {[%clk 0:02:29.3]} 21. Rxf1 {[%clk 0:01:20.4]} 21... Rd4 {[%clk
0:02:30.8]} 22. Ng3 {[%clk 0:01:10.9]} 22... Rfxf4 {[%clk 0:02:22.4]} 23. Re1
{[%clk 0:01:11.6]} 23... Bh4 {[%clk 0:02:13]} 24. Kg2 {[%clk 0:01:05.2]} 24...
Rd2+ {[%clk 0:02:12.1]} 0-1

[Event "*** Titled Tuesday 3|2 Blitz"]
[Site "Chess.com"]
[Date "2016.08.02"]
[Round "8"]
[White "Dr-Bassem"]
[Black "igorkovalenko"]
[Result "0-1"]
[WhiteElo "2609"]
[BlackElo "2566"]
[TimeControl "180+2"]
[EndTime "12:46:37 PDT"]
[Termination "igorkovalenko won by resignation"]

1. e4 {[%clk 0:03:01.9]} 1... d5 {[%clk 0:03:00.6]} 2. exd5 {[%clk 0:03:02.7]}
2... Qxd5 {[%clk 0:03:02.5]} 3. Nc3 {[%clk 0:03:04]} 3... Qd6 {[%clk 0:03:03.9]}
4. d4 {[%clk 0:03:05.7]} 4... Nf6 {[%clk 0:03:05.3]} 5. Nf3 {[%clk 0:03:07.1]}
5... Bg4 {[%clk 0:03:05.9]} 6. h3 {[%clk 0:03:07.4]} 6... Bh5 {[%clk 0:03:07.4]}
7. g4 {[%clk 0:03:08.1]} 7... Bg6 {[%clk 0:03:08.8]} 8. Ne5 {[%clk 0:03:09.7]}
8... Nbd7 {[%clk 0:03:10.5]} 9. f4 {[%clk 0:02:56.5]} 9... O-O-O {[%clk
0:03:09.1]} 10. Be3 {[%clk 0:02:56.8]} 10... e6 {[%clk 0:03:08.4]} 11. Bg2
{[%clk 0:02:56]} 11... Qa6 {[%clk 0:03:07.7]} 12. Qf3 {[%clk 0:02:46.9]} 12...
Bb4 {[%clk 0:03:06.5]} 13. Nxg6 {[%clk 0:02:29]} 13... hxg6 {[%clk 0:03:07.1]}
14. a3 {[%clk 0:02:25.1]} 14... Bxc3+ {[%clk 0:02:57.6]} 15. bxc3 {[%clk
0:02:27]} 15... Nd5 {[%clk 0:02:55.7]} 16. Bd2 {[%clk 0:02:25]} 16... N7b6
{[%clk 0:02:56.4]} 17. Bf1 {[%clk 0:02:19.1]} 17... Qa4 {[%clk 0:02:56.8]} 18.
Bd3 {[%clk 0:02:09.5]} 18... Nc4 {[%clk 0:02:54.3]} 19. Qe2 {[%clk 0:01:58.5]}
19... Nxd2 {[%clk 0:02:48.4]} 20. Qxd2 {[%clk 0:02:00.4]} 20... Qa5 {[%clk
0:02:49.5]} 21. Rb1 {[%clk 0:01:40.1]} 21... Qxc3 {[%clk 0:02:49.5]} 22. Qxc3
{[%clk 0:01:40.7]} 22... Nxc3 {[%clk 0:02:50.7]} 23. Rb3 {[%clk 0:01:42.3]}
23... Nd5 {[%clk 0:02:51.1]} 24. f5 {[%clk 0:01:43.6]} 24... exf5 {[%clk
0:02:49.3]} 25. gxf5 {[%clk 0:01:45.5]} 25... g5 {[%clk 0:02:49]} 26. Kf2 {[%clk
0:01:43.3]} 26... Rh4 {[%clk 0:02:46.5]} 27. c3 {[%clk 0:01:39.2]} 27... Nf4
{[%clk 0:02:45.1]} 28. Bf1 {[%clk 0:01:38.6]} 28... Rd5 {[%clk 0:02:41.7]} 29.
Rb5 {[%clk 0:01:29.8]} 29... Rxb5 {[%clk 0:02:39.6]} 30. Bxb5 {[%clk 0:01:31.7]}
30... Rxh3 {[%clk 0:02:39.3]} 31. Rxh3 {[%clk 0:01:31.9]} 31... Nxh3+ {[%clk
0:02:41.2]} 32. Kg3 {[%clk 0:01:33]} 32... Nf4 {[%clk 0:02:42.8]} 33. f6 {[%clk
0:01:12.6]} 33... gxf6 {[%clk 0:02:17]} 34. Kg4 {[%clk 0:01:13.3]} 34... Kd8
{[%clk 0:02:17.5]} 35. Kf5 {[%clk 0:01:09]} 35... Ke7 {[%clk 0:02:18.5]} 36. c4
{[%clk 0:01:10]} 36... b6 {[%clk 0:02:17.5]} 37. c5 {[%clk 0:01:07.4]} 37... Ne6
{[%clk 0:02:17.5]} 0-1

[Event "*** Titled Tuesday 3|2 Blitz"]
[Site "Chess.com"]
[Date "2016.08.02"]
[Round "8"]
[White "FairChess_on_YouTube"]
[Black "Chesstrainer1"]
[Result "1-0"]
[WhiteElo "2709"]
[BlackElo "2449"]
[TimeControl "180+2"]
[EndTime "12:47:32 PDT"]
[Termination "FairChess_on_YouTube won by resignation"]

1. e4 {[%clk 0:03:00.7]} 1... c5 {[%clk 0:03:00.3]} 2. Nf3 {[%clk 0:03:01.8]}
2... e6 {[%clk 0:03:00.3]} 3. g3 {[%clk 0:03:02.9]} 3... d5 {[%clk 0:03:00.8]}
4. exd5 {[%clk 0:03:03.8]} 4... Qxd5 {[%clk 0:03:02]} 5. Bg2 {[%clk 0:03:04.5]}
5... Nc6 {[%clk 0:03:00.8]} 6. O-O {[%clk 0:03:04.7]} 6... Qd8 {[%clk
0:02:53.1]} 7. Na3 {[%clk 0:02:54.6]} 7... Nge7 {[%clk 0:02:49.5]} 8. d3 {[%clk
0:02:52]} 8... Nf5 {[%clk 0:02:50.3]} 9. Nc4 {[%clk 0:02:48]} 9... Be7 {[%clk
0:02:50.9]} 10. a4 {[%clk 0:02:49.1]} 10... O-O {[%clk 0:02:51.1]} 11. a5 {[%clk
0:02:50.7]} 11... f6 {[%clk 0:02:02.3]} 12. Nfd2 {[%clk 0:02:49.5]} 12... Qc7
{[%clk 0:01:58.3]} 13. Ne4 {[%clk 0:02:47.9]} 13... Rb8 {[%clk 0:01:51.8]} 14.
Nc3 {[%clk 0:02:45.8]} 14... Ncd4 {[%clk 0:01:46.4]} 15. Re1 {[%clk 0:02:39.4]}
15... b5 {[%clk 0:01:38.5]} 16. axb6 {[%clk 0:02:41.3]} 16... axb6 {[%clk
0:01:40.1]} 17. Bf4 {[%clk 0:02:31.6]} 17... e5 {[%clk 0:01:38]} 18. Nd5 {[%clk
0:02:32.4]} 18... Qd8 {[%clk 0:01:37.4]} 19. Ra7 {[%clk 0:02:32.8]} 19... Bb7
{[%clk 0:01:20.2]} 20. Ncxb6 {[%clk 0:02:04.9]} 20... exf4 {[%clk 0:01:13.5]}
21. Nxe7+ {[%clk 0:02:05.9]} 21... Nxe7 {[%clk 0:01:14.5]} 22. Bxb7 {[%clk
0:02:01.2]} 22... f3 {[%clk 0:01:03.5]} 23. Rxe7 {[%clk 0:01:59.5]} 23... Kh8
{[%clk 0:00:20.6]} 24. Bxf3 {[%clk 0:01:59.2]} 24... Nf5 {[%clk 0:00:12.8]} 25.
Reb7 {[%clk 0:01:52.3]} 25... Rxb7 {[%clk 0:00:13.6]} 26. Rxb7 {[%clk
0:01:54.2]} 26... Re8 {[%clk 0:00:14.2]} 27. Nc4 {[%clk 0:01:48.6]} 27... Nd4
{[%clk 0:00:13.7]} 28. Kg2 {[%clk 0:01:49.6]} 1-0

[Event "*** Titled Tuesday 3|2 Blitz"]
[Site "Chess.com"]
[Date "2016.08.02"]
[Round "8"]
[White "Kawhi_Leonard2"]
[Black "brauliocuarta"]
[Result "1-0"]
[WhiteElo "2107"]
[BlackElo "2052"]
[TimeControl "180+2"]
[EndTime "12:47:55 PDT"]
[Termination "Kawhi_Leonard2 won by resignation"]

1. e4 {[%clk 0:03:01.9]} 1... c5 {[%clk 0:02:59.6]} 2. Nf3 {[%clk 0:03:02.6]}
2... e6 {[%clk 0:03:00.7]} 3. d4 {[%clk 0:03:04.2]} 3... cxd4 {[%clk 0:03:02.6]}
4. Nxd4 {[%clk 0:03:05.4]} 4... a6 {[%clk 0:03:03.9]} 5. Nc3 {[%clk 0:03:06.8]}
5... Qc7 {[%clk 0:03:04.2]} 6. Be3 {[%clk 0:03:06.3]} 6... Bb4 {[%clk
0:03:03.2]} 7. Bd3 {[%clk 0:03:06.1]} 7... Bxc3+ {[%clk 0:02:56.1]} 8. bxc3
{[%clk 0:03:07.1]} 8... Qxc3+ {[%clk 0:02:57.6]} 9. Ke2 {[%clk 0:03:06.2]} 9...
Nf6 {[%clk 0:02:57.2]} 10. Re1 {[%clk 0:03:03.7]} 10... O-O {[%clk 0:02:52.8]}
11. Kf1 {[%clk 0:03:04.5]} 11... b5 {[%clk 0:02:54.4]} 12. e5 {[%clk 0:02:49.3]}
12... Nd5 {[%clk 0:02:52.6]} 13. Nf3 {[%clk 0:02:34]} 13... Bb7 {[%clk
0:02:44.5]} 14. Bd4 {[%clk 0:02:33.5]} 14... Qc7 {[%clk 0:02:38.6]} 15. Bxh7+
{[%clk 0:02:21.1]} 15... Kxh7 {[%clk 0:02:13]} 16. Ng5+ {[%clk 0:02:21.7]} 16...
Kg8 {[%clk 0:02:14.1]} 17. Qh5 {[%clk 0:02:21.7]} 17... Qxc2 {[%clk 0:02:13.9]}
18. Re4 {[%clk 0:02:22.6]} 18... Ne3+ {[%clk 0:00:50.7]} 19. Rxe3 {[%clk
0:02:21.4]} 19... Qg6 {[%clk 0:00:49.4]} 20. Qh4 {[%clk 0:02:22.1]} 20... f6
{[%clk 0:00:46.8]} 21. exf6 {[%clk 0:02:20.1]} 21... gxf6 {[%clk 0:00:43.6]} 22.
Rg3 {[%clk 0:02:14.3]} 22... fxg5 {[%clk 0:00:21.5]} 23. Rxg5 {[%clk 0:02:13.7]}
23... Qxg5 {[%clk 0:00:23.4]} 24. Qxg5+ {[%clk 0:02:13.8]} 24... Kf7 {[%clk
0:00:25.2]} 25. Qh5+ {[%clk 0:02:04.2]} 25... Ke7 {[%clk 0:00:25.3]} 26. Qg5+
{[%clk 0:01:42.9]} 26... Ke8 {[%clk 0:00:22.9]} 27. Bc5 {[%clk 0:01:42.3]} 27...
Nc6 {[%clk 0:00:17.4]} 28. Bxf8 {[%clk 0:01:38.2]} 28... Kxf8 {[%clk 0:00:19.3]}
29. Rd1 {[%clk 0:01:33.3]} 29... Rd8 {[%clk 0:00:14.2]} 30. Rd3 {[%clk
0:01:28.9]} 30... Ne7 {[%clk 0:00:13.7]} 31. Rh3 {[%clk 0:01:19.4]} 31... d5
{[%clk 0:00:08.7]} 32. Rh8+ {[%clk 0:01:17.6]} 1-0

[Event "*** Titled Tuesday 3|2 Blitz"]
[Site "Chess.com"]
[Date "2016.08.02"]
[Round "8"]
[White "GeorgMeier"]
[Black "MinhGTrAn"]
[Result "1/2-1/2"]
[WhiteElo "2706"]
[BlackElo "2614"]
[TimeControl "180+2"]
[EndTime "12:48:25 PDT"]
[Termination "Game drawn by agreement"]

1. Nf3 {[%clk 0:03:01.9]} 1... Nf6 {[%clk 0:03:00.4]} 2. g3 {[%clk 0:03:03.2]}
2... b6 {[%clk 0:03:00.9]} 3. Bg2 {[%clk 0:03:04.4]} 3... Bb7 {[%clk 0:03:02.8]}
4. c4 {[%clk 0:03:05.6]} 4... e6 {[%clk 0:03:04.1]} 5. O-O {[%clk 0:03:06.7]}
5... Be7 {[%clk 0:03:05.7]} 6. b3 {[%clk 0:03:08.3]} 6... O-O {[%clk 0:03:06.8]}
7. Bb2 {[%clk 0:03:09.9]} 7... d5 {[%clk 0:03:05.8]} 8. cxd5 {[%clk 0:03:10.7]}
8... Nxd5 {[%clk 0:03:05.3]} 9. Nc3 {[%clk 0:03:11.6]} 9... Nxc3 {[%clk
0:03:04.5]} 10. Bxc3 {[%clk 0:03:11.9]} 10... c5 {[%clk 0:03:03.3]} 11. d4
{[%clk 0:03:12.8]} 11... Nd7 {[%clk 0:02:57]} 12. Rc1 {[%clk 0:02:57.5]} 12...
Rc8 {[%clk 0:02:53.6]} 13. Qd3 {[%clk 0:02:29.3]} 13... Nf6 {[%clk 0:02:45.8]}
14. Rfd1 {[%clk 0:02:28.5]} 14... cxd4 {[%clk 0:02:17.3]} 15. Bxd4 {[%clk
0:02:16.2]} 15... Be4 {[%clk 0:02:10.6]} 16. Qe3 {[%clk 0:01:55.8]} 16... Rxc1
{[%clk 0:02:10.4]} 17. Rxc1 {[%clk 0:01:55.7]} 17... Qa8 {[%clk 0:02:07.2]} 18.
Bxf6 {[%clk 0:01:47.2]} 18... Bxf6 {[%clk 0:02:07.1]} 19. Ne1 {[%clk 0:01:44.9]}
19... Bxg2 {[%clk 0:02:05.8]} 20. Nxg2 {[%clk 0:01:46.1]} 20... Rd8 {[%clk
0:02:06.2]} 21. Ne1 {[%clk 0:01:41.7]} 21... g6 {[%clk 0:01:56.3]} 22. Qf3
{[%clk 0:01:33.3]} 22... Qxf3 {[%clk 0:01:56.9]} 23. Nxf3 {[%clk 0:01:35.2]}
23... Rd7 {[%clk 0:01:57.4]} 24. Kf1 {[%clk 0:01:35.6]} 24... Kg7 {[%clk
0:01:50.3]} 25. e4 {[%clk 0:01:36.4]} 25... Bb2 {[%clk 0:01:36.2]} 26. Rc2
{[%clk 0:01:35.6]} 26... Ba1 {[%clk 0:01:34.7]} 27. Ke2 {[%clk 0:01:36]} 27...
Kf6 {[%clk 0:01:32.9]} 28. g4 {[%clk 0:01:29.6]} 28... h6 {[%clk 0:01:30.8]} 29.
h3 {[%clk 0:01:30.3]} 29... Be5 {[%clk 0:01:29]} 30. b4 {[%clk 0:01:23.5]} 30...
Bf4 {[%clk 0:01:27.3]} 31. b5 {[%clk 0:01:22.2]} 31... a6 {[%clk 0:01:25.1]} 32.
a4 {[%clk 0:01:17.8]} 32... axb5 {[%clk 0:01:25.8]} 33. axb5 {[%clk 0:01:19.7]}
33... Ra7 {[%clk 0:01:25.8]} 34. Rc6 {[%clk 0:01:04.6]} 34... Ra2+ {[%clk
0:01:26.7]} 35. Kf1 {[%clk 0:01:05.3]} 35... Ra4 {[%clk 0:01:28.4]} 36. e5+
{[%clk 0:01:03.9]} 36... Bxe5 {[%clk 0:01:25.9]} 37. Nxe5 {[%clk 0:01:05.4]}
37... Kxe5 {[%clk 0:01:27.8]} 38. Rxb6 {[%clk 0:01:07.3]} 38... Rb4 {[%clk
0:01:26.2]} 39. Rb8 {[%clk 0:01:04.8]} 39... Rb3 {[%clk 0:01:22.8]} 40. Kg2
{[%clk 0:01:03.1]} 40... Kf6 {[%clk 0:01:12.6]} 41. b6 {[%clk 0:01:03.6]} 41...
Kg5 {[%clk 0:01:09.9]} 42. b7 {[%clk 0:00:52]} 1/2-1/2

[Event "*** Titled Tuesday 3|2 Blitz"]
[Site "Chess.com"]
[Date "2016.08.02"]
[Round "8"]
[White "Maitreia"]
[Black "wonderfultime"]
[Result "0-1"]
[WhiteElo "2362"]
[BlackElo "2609"]
[TimeControl "180+2"]
[EndTime "12:48:39 PDT"]
[Termination "wonderfultime won by resignation"]

1. c4 {[%clk 0:03:01.9]} 1... c6 {[%clk 0:02:59.9]} 2. g3 {[%clk 0:03:03.2]}
2... d5 {[%clk 0:03:01.4]} 3. Nf3 {[%clk 0:03:04.7]} 3... g6 {[%clk 0:03:02.9]}
4. Bg2 {[%clk 0:03:05.4]} 4... Bg7 {[%clk 0:03:04.4]} 5. O-O {[%clk 0:03:05.8]}
5... Nf6 {[%clk 0:03:06]} 6. Qb3 {[%clk 0:03:02.4]} 6... O-O {[%clk 0:03:06.8]}
7. d3 {[%clk 0:03:03.8]} 7... b6 {[%clk 0:03:03.6]} 8. Nc3 {[%clk 0:03:01.9]}
8... Bb7 {[%clk 0:03:04.6]} 9. Bf4 {[%clk 0:02:45.7]} 9... Nbd7 {[%clk
0:03:03.2]} 10. cxd5 {[%clk 0:02:45.9]} 10... Nxd5 {[%clk 0:03:02]} 11. Nxd5
{[%clk 0:02:46]} 11... cxd5 {[%clk 0:03:03.9]} 12. Rfc1 {[%clk 0:02:42.8]} 12...
Nc5 {[%clk 0:02:55]} 13. Rxc5 {[%clk 0:02:35.2]} 13... bxc5 {[%clk 0:02:56.9]}
14. Qxb7 {[%clk 0:02:36.8]} 14... e6 {[%clk 0:02:58.2]} 15. Rc1 {[%clk
0:02:21.3]} 15... Qb6 {[%clk 0:02:58]} 16. Qe7 {[%clk 0:02:03.3]} 16... Qxb2
{[%clk 0:02:55.2]} 17. Qxc5 {[%clk 0:02:02.3]} 17... Qxe2 {[%clk 0:02:43.8]} 18.
Qe3 {[%clk 0:01:24.9]} 18... Qxe3 {[%clk 0:02:37]} 19. Bxe3 {[%clk 0:01:26.8]}
19... Rfc8 {[%clk 0:02:38.6]} 20. Rxc8+ {[%clk 0:01:26.4]} 20... Rxc8 {[%clk
0:02:40.5]} 21. Bxa7 {[%clk 0:01:27.9]} 21... Ra8 {[%clk 0:02:40.5]} 22. Bd4
{[%clk 0:01:27.9]} 22... Bf8 {[%clk 0:02:39.3]} 23. Bf1 {[%clk 0:01:21.4]} 23...
Rxa2 {[%clk 0:02:34]} 24. Kg2 {[%clk 0:01:18.4]} 24... Be7 {[%clk 0:02:35.2]}
25. h4 {[%clk 0:01:16.8]} 25... f6 {[%clk 0:02:35.7]} 26. Be3 {[%clk 0:01:15.6]}
26... e5 {[%clk 0:02:33.4]} 27. d4 {[%clk 0:01:15.8]} 27... e4 {[%clk
0:02:34.3]} 28. Nd2 {[%clk 0:01:12.7]} 28... f5 {[%clk 0:02:32.3]} 29. g4 {[%clk
0:01:05.7]} 29... Bd6 {[%clk 0:02:23.6]} 30. gxf5 {[%clk 0:00:59.7]} 30... gxf5
{[%clk 0:02:25.5]} 31. Nc4 {[%clk 0:00:58.3]} 31... Bc7 {[%clk 0:02:18.3]} 32.
Ne5 {[%clk 0:00:59.4]} 32... Kg7 {[%clk 0:02:15.9]} 33. Kg3 {[%clk 0:00:58.5]}
33... Kf6 {[%clk 0:02:14.8]} 34. Kf4 {[%clk 0:00:53.1]} 34... Ra8 {[%clk
0:01:40.7]} 35. Bh3 {[%clk 0:00:52.6]} 35... Re8 {[%clk 0:01:39.5]} 36. Bxf5
{[%clk 0:00:49.5]} 36... Rxe5 {[%clk 0:01:40.5]} 37. dxe5+ {[%clk 0:00:47.7]}
37... Bxe5+ {[%clk 0:01:42.4]} 38. Kg4 {[%clk 0:00:46.7]} 38... h5+ {[%clk
0:01:44.3]} 39. Kxh5 {[%clk 0:00:44.4]} 39... Kxf5 {[%clk 0:01:46.2]} 40. Kh6
{[%clk 0:00:24.7]} 40... d4 {[%clk 0:01:46.9]} 41. Bg5 {[%clk 0:00:19]} 41... d3
{[%clk 0:01:40.3]} 42. h5 {[%clk 0:00:10.9]} 42... Bf4 {[%clk 0:01:41]} 43. Bxf4
{[%clk 0:00:11]} 43... Kxf4 {[%clk 0:01:42.9]} 44. Kg6 {[%clk 0:00:07.9]} 44...
d2 {[%clk 0:01:44.8]} 0-1

[Event "*** Titled Tuesday 3|2 Blitz"]
[Site "Chess.com"]
[Date "2016.08.02"]
[Round "8"]
[White "Newlight1"]
[Black "DrHolmes13"]
[Result "1-0"]
[WhiteElo "2414"]
[BlackElo "2399"]
[TimeControl "180+2"]
[EndTime "12:48:59 PDT"]
[Termination "Newlight1 won by resignation"]

1. e4 {[%clk 0:03:01.9]} 1... c6 {[%clk 0:03:00.7]} 2. d4 {[%clk 0:03:02.5]}
2... d5 {[%clk 0:03:02.6]} 3. e5 {[%clk 0:03:04.2]} 3... Bf5 {[%clk 0:03:03.1]}
4. h4 {[%clk 0:03:05.8]} 4... h6 {[%clk 0:03:03.3]} 5. g4 {[%clk 0:03:06.6]}
5... Bd7 {[%clk 0:03:04.5]} 6. Nc3 {[%clk 0:03:07.1]} 6... Qc8 {[%clk
0:02:57.7]} 7. Be2 {[%clk 0:02:34.8]} 7... h5 {[%clk 0:02:52.4]} 8. gxh5 {[%clk
0:02:32.2]} 8... Nh6 {[%clk 0:02:52.9]} 9. Nf3 {[%clk 0:02:30]} 9... Bf5 {[%clk
0:02:47.9]} 10. Rg1 {[%clk 0:02:26.1]} 10... e6 {[%clk 0:02:47.8]} 11. a3 {[%clk
0:02:19.9]} 11... Nd7 {[%clk 0:02:48]} 12. Be3 {[%clk 0:02:16.9]} 12... c5
{[%clk 0:02:38]} 13. Qd2 {[%clk 0:02:12.3]} 13... a6 {[%clk 0:02:16.1]} 14.
O-O-O {[%clk 0:02:01.5]} 14... b5 {[%clk 0:02:17]} 15. dxc5 {[%clk 0:01:59.1]}
15... Nxc5 {[%clk 0:02:15.2]} 16. Nd4 {[%clk 0:01:55.8]} 16... Bh7 {[%clk
0:02:03.5]} 17. Bxh6 {[%clk 0:01:40.7]} 17... gxh6 {[%clk 0:02:03.9]} 18. Qf4
{[%clk 0:01:38.5]} 18... Nd7 {[%clk 0:01:38.7]} 19. Nxd5 {[%clk 0:01:26.5]}
19... exd5 {[%clk 0:01:35.2]} 20. Bg4 {[%clk 0:01:27.4]} 20... Bc5 {[%clk
0:01:26.4]} 21. c3 {[%clk 0:01:22.4]} 21... Bxd4 {[%clk 0:01:21.3]} 22. Rxd4
{[%clk 0:01:22.3]} 22... Qc6 {[%clk 0:01:17.2]} 23. Bf3 {[%clk 0:01:22]} 23...
Nb6 {[%clk 0:01:16.1]} 24. Rg7 {[%clk 0:01:19]} 24... Qe6 {[%clk 0:01:03.7]} 25.
Bg4 {[%clk 0:01:08.7]} 25... Qe7 {[%clk 0:00:52.7]} 26. e6 {[%clk 0:01:08.7]}
26... Bg8 {[%clk 0:00:48]} 27. exf7+ {[%clk 0:00:58.3]} 27... Bxf7 {[%clk
0:00:48.9]} 28. Rd3 {[%clk 0:00:46.6]} 28... Kf8 {[%clk 0:00:42.2]} 29. Rxf7+
{[%clk 0:00:37.6]} 29... Qxf7 {[%clk 0:00:41.9]} 30. Qd6+ {[%clk 0:00:36.5]}
30... Kg7 {[%clk 0:00:36.8]} 31. Be6 {[%clk 0:00:36.6]} 31... Qxf2 {[%clk
0:00:24.9]} 32. Qe7+ {[%clk 0:00:32.6]} 1-0

[Event "*** Titled Tuesday 3|2 Blitz"]
[Site "Chess.com"]
[Date "2016.08.02"]
[Round "8"]
[White "SabinoBrunello"]
[Black "oggy1984"]
[Result "1-0"]
[WhiteElo "2548"]
[BlackElo "2314"]
[TimeControl "180+2"]
[EndTime "12:49:01 PDT"]
[Termination "SabinoBrunello won by resignation"]

1. d4 {[%clk 0:02:58.7]} 1... Nf6 {[%clk 0:02:59.2]} 2. Bg5 {[%clk 0:02:58.5]}
2... d5 {[%clk 0:02:59.5]} 3. e3 {[%clk 0:02:57.8]} 3... c6 {[%clk 0:03:00.1]}
4. Bd3 {[%clk 0:02:58]} 4... Bg4 {[%clk 0:03:00.2]} 5. Ne2 {[%clk 0:02:53.5]}
5... e6 {[%clk 0:03:00]} 6. f3 {[%clk 0:02:51.7]} 6... Bh5 {[%clk 0:02:59.7]} 7.
Nf4 {[%clk 0:02:52.1]} 7... Bg6 {[%clk 0:02:59]} 8. h4 {[%clk 0:02:52.6]} 8...
Bd6 {[%clk 0:02:48.5]} 9. h5 {[%clk 0:02:47.4]} 9... Bxd3 {[%clk 0:02:48.5]} 10.
Nxd3 {[%clk 0:02:47.6]} 10... Bg3+ {[%clk 0:02:42.1]} 11. Kf1 {[%clk 0:02:44.5]}
11... h6 {[%clk 0:02:41.5]} 12. Bf4 {[%clk 0:02:43.4]} 12... Bxf4 {[%clk
0:02:40]} 13. exf4 {[%clk 0:02:44.1]} 13... Qb6 {[%clk 0:02:32.1]} 14. c3 {[%clk
0:02:44.7]} 14... Nbd7 {[%clk 0:02:30]} 15. Nd2 {[%clk 0:02:43]} 15... c5 {[%clk
0:02:26.3]} 16. dxc5 {[%clk 0:02:43.1]} 16... Nxc5 {[%clk 0:02:27]} 17. Nxc5
{[%clk 0:02:43.9]} 17... Qxc5 {[%clk 0:02:27.3]} 18. Qe2 {[%clk 0:02:39.7]}
18... O-O {[%clk 0:02:25.7]} 19. Nb3 {[%clk 0:02:40.2]} 19... Qb6 {[%clk
0:02:16.9]} 20. g4 {[%clk 0:02:33]} 20... Nd7 {[%clk 0:01:42]} 21. Kg2 {[%clk
0:02:25.8]} 21... a5 {[%clk 0:01:20.2]} 22. Nd4 {[%clk 0:02:23.9]} 22... a4
{[%clk 0:01:12.7]} 23. a3 {[%clk 0:02:24.8]} 23... Rae8 {[%clk 0:00:58.1]} 24.
Rae1 {[%clk 0:02:15.6]} 24... e5 {[%clk 0:00:52.6]} 25. Nf5 {[%clk 0:01:57.4]}
25... exf4 {[%clk 0:00:48.5]} 26. Qd2 {[%clk 0:01:52.6]} 26... Ne5 {[%clk
0:00:29.8]} 27. Qxd5 {[%clk 0:01:35.3]} 27... Qxb2+ {[%clk 0:00:24.9]} 28. Kh3
{[%clk 0:01:35.6]} 28... Qxc3 {[%clk 0:00:12.5]} 29. Rhf1 {[%clk 0:01:35.9]}
29... Nxf3 {[%clk 0:00:11.1]} 30. Rxf3 {[%clk 0:01:03.9]} 30... Qxe1 {[%clk
0:00:11.1]} 31. Rxf4 {[%clk 0:01:05.3]} 31... Qe6 {[%clk 0:00:04.4]} 32. Qd4
{[%clk 0:01:05.4]} 32... f6 {[%clk 0:00:05.3]} 33. Rf3 {[%clk 0:01:04.6]} 33...
Qe5 {[%clk 0:00:05.3]} 34. Qxa4 {[%clk 0:01:05]} 34... Re7 {[%clk 0:00:02.2]}
35. Qb3+ {[%clk 0:00:55.4]} 35... Re6 {[%clk 0:00:02.9]} 36. Re3 {[%clk
0:00:56.5]} 36... Qxf5 {[%clk 0:00:02.2]} 37. gxf5 {[%clk 0:00:56.8]} 1-0